Cogmind - Beta 14 @@@ ROGUE MODE // 2024.08.13 @ 17:58:45 Player: Akire Result: Self-destructed Performance ------------- Evolutions (1) 500 Regions Visited (2) 400 Robots Destroyed (34) 170 Value Destroyed (772) 772 Prototype IDs (3) 60 Alien Tech Used (0) 0 Bonus (25) 25 TOTAL SCORE: 1927 Bonus ------- High Alert Combat Kills 25 Cogmind --------- Core Integrity 100/400 Matter 284/300 Energy 100/100 System Corruption 1% Temperature Cool (0) Movement Flying (600) Ox7 Location -9/Materials Parts ------- > --- POWER (1) -------- (None) > --- PROPULSION (3) --- Flight Unit > --- UTILITY (3) ------ Small Storage Unit Hardened Medium Armor Plating Hardened Medium Armor Plating > --- WEAPON (2) ------- Assault Cannon Assault Cannon > --- INVENTORY (8) ---- Light Ion Engine Cooling System Medium Storage Unit Signal Interpreter Hardened Medium Armor Plating Assault Cannon Mini Grenade Launcher Peak State ------------ > --- POWER ------------ Light Nuclear Core > --- PROPULSION ------- Flight Unit Flight Unit Flight Unit > --- UTILITY ---------- Medium Storage Unit Hardened Medium Armor Plating Shield Generator > --- WEAPON ----------- Assault Cannon Assault Cannon > --- INVENTORY -------- Light Ion Engine Flight Unit Flight Unit Cooling System Signal Interpreter Hardened Medium Armor Plating Hardened Medium Armor Plating Assault Cannon Assault Cannon Mini Grenade Launcher [Rating: 20] Favorites ----------- Power Ion Engine Engine Ion Engine Power Core Light Nuclear Core Propulsion Aluminum Leg Leg Aluminum Leg Flight Unit Flight Unit Utility Medium Storage Unit Device Cooling System Storage Medium Storage Unit Protection Hardened Medium Armor Plating Weapon Assault Cannon Energy Gun Medium Laser Ballistic Gun Light Assault Rifle Ballistic Cannon Assault Cannon Build | -11 -10 -9 ------- Run | Yrd Mat Mat Slots Evolved 2 | . . 2 Power . | . . . Propulsion 1 | . . 1 Utility 1 | . . 1 Weapon . | . . . Parts Attached 34 | 6 1 27 Power 5 | 1 . 4 Engine 4 | 1 . 3 Core 1 | . . 1 Reactor . | . . . Propulsion 12 | 2 . 10 Treads . | . . . Leg 7 | 2 . 5 Wheel . | . . . Hover . | . . . Flight 5 | . . 5 Utility 10 | 1 1 8 Device 4 | . . 4 Storage 3 | 1 . 2 Processor . | . . . Hackware . | . . . Protection 3 | . 1 2 Artifact . | . . . Weapon 7 | 2 . 5 Energy Gun 2 | 1 . 1 Energy Cannon . | . . . Ballistic Gun 2 | 1 . 1 Ballistic Cannon 3 | . . 3 Launcher . | . . . Special Weapon . | . . . Impact Weapon . | . . . Slashing Weapon . | . . . Piercing Weapon . | . . . Special Melee Weapon . | . . . Unidentified Prototypes . | . . . Parts Lost 8 | . . 8 Power 1 | . . 1 Propulsion 4 | . . 4 Utility 2 | . . 2 Weapon 1 | . . 1 Highest Loss Streak 4 | . . 4 To Critical Strikes . | . . . Average Slot Usage (%) 90 | . 97 89 Engine 7 | . 14 6 Core 1 | . . 2 Leg 17 | . 28 15 Flight 9 | . . 10 Device 10 | . . 12 Storage 11 | . 14 11 Protection 8 | . 11 8 Energy Gun 9 | . 14 8 Ballistic Gun 5 | . 14 4 Ballistic Cannon 7 | . . 8 Peak Build Rating 20 | 6 7 20 Average Rating 12 | 4 6 13 On Entrance 4 | . 6 7 Naked Turns . | . . . Heaviest Build 41 | 13 14 41 Greatest Support 30 | 20 20 30 Greatest Overweight (x) 10 | . . 10 Average Overweight (x) . | . . 1 Largest Inventory Capacity 10 | 8 8 10 Average Capacity 9 | 7 8 9 Most Carried 10 | 5 7 10 Average Carried 7 | 3 6 8 Final Capacity 8 | 8 8 8 Final Carried 7 | 4 7 7 Class Distribution -------------------- 80% | Mutant 19% | Scavenger-Mutant Dominant Class ---------------- Mutant | -10/Materials Mutant | -9/Materials Resources | -11 -10 -9 ----------- Run | Yrd Mat Mat Matter Collected 836 | 245 22 569 Remotely . | . . . Salvage Created 1089 | . 22 1067 Parts 74 | . 3 71 Haulers Intercepted 2 | . . 2 Recyclers Shooed 3 | . . 3 Parts Field Recycled . | . . . Retrieved Matter . | . . . Parts Self-Destructed . | . . . Prevented . | . . . Kills | -11 -10 -9 ------- Run | Yrd Mat Mat Combat Hostiles Destroyed 25 | . . 25 Guns 20 | . . 20 Cannons 5 | . . 5 Classes Destroyed 8 | . 1 7 Worker 1 | . . 1 Builder 2 | . 1 1 Hauler 2 | . . 2 Recycler 2 | . . 2 Watcher 2 | . . 2 Swarmer 10 | . . 10 Grunt 11 | . . 11 Sentry 4 | . . 4 Best Kill Streak 7 | . 1 7 Combat Bots Only 3 | . . 3 Max Kills in Single Turn 2 | . 1 2 Gunslinging . | . . . Exploded . | . . . Melee . | . . . Uniques/NPCs Destroyed . | . . . Combat | -11 -10 -9 -------- Run | Yrd Mat Mat Hostile Shots Fired 204 | . 6 198 Missed 63 | . 3 60 Damage Taken 1362 | . 37 1325 Core 300 | . . 300 Absorbed by Shields 210 | . . 210 Redirected to Shielding 36 | . 3 33 Core Remaining (%) 100 | 100 100 . Volleys Fired 114 | . 6 108 Largest 2 | . 2 2 Hottest 115 | . 70 115 Shots Fired 220 | . 12 208 Gun 171 | . 12 159 Cannon 49 | . . 49 Launcher . | . . . Special . | . . . Kinetic 109 | . 6 103 Thermal 111 | . 6 105 Explosive . | . . . Electromagnetic . | . . . Robot Hit Streak 15 | . 4 15 Robot Miss Streak 4 | . 3 4 Penetration Max . | . . . Secondary Targets 1 | . . 1 Max Gunslinging Chain 1 | . . 1 Shots Hit Robots 129 | . 6 123 Core Hits 55 | . 1 54 Critical Kills . | . . . Critical Parts Destroyed . | . . . Critical Strikes 9 | . . 9 Burn 9 | . . 9 Melee Attacks . | . . . Impact . | . . . Slashing . | . . . Piercing . | . . . Sneak Attacks . | . . . Combat Hostiles . | . . . Follow-up Attacks . | . . . Damage Inflicted 1791 | . 61 1730 Guns 1285 | . 61 1224 Cannons 501 | . . 501 Explosions . | . . . Melee . | . . . Ramming 5 | . . 5 Kinetic 783 | . 24 759 Thermal 1003 | . 37 966 Explosive . | . . . Electromagnetic . | . . . Impact . | . . . Slashing . | . . . Piercing . | . . . Highest Corruption 1 | . . 1 Average Corruption 1 | . . 1 Corruption Purged . | . . . Corruption Blocked . | . . . Effects 12 | . . 12 Message Errors 1 | . . 1 Matter Fused 2 | . . 2 Energy Discharges 3 | . . 3 Parts Fused 1 | . . 1 Data Loss (minor) 3 | . . 3 Weapon Failures 2 | . . 2 Overload Shots . | . . . Overflow Damage 4 | . . 4 Projectiles 4 | . . 4 Explosions . | . . . Melee . | . . . Knockbacks 5 | . . 5 Impact . | . . . Kinetic 4 | . . 4 Secondary 1 | . . 1 Self-Inflicted Damage 2 | . . 2 Shots . | . . . Rammed 1 | . . 1 Targets Rammed 1 | . . 1 Kicked . | . . . Crushed . | . . . Highest Temperature 586 | . 70 586 Average Temperature 182 | . 33 195 Received Heat Transfer 392 | . 21 371 Effects 29 | . . 29 Shutdowns 4 | . . 4 Energy Bleed 4 | . . 4 Interference 2 | . . 2 Matter Decay 2 | . . 2 Short Circuit 3 | . . 3 Damage (major) 12 | . . 12 Damage (core) 2 | . . 2 Siege Activations . | . . . Robots Corrupted . | . . . Combat Hostiles . | . . . Parts Fried . | . . . Impact Corruptions . | . . . Robots Melted . | . . . Combat Hostiles . | . . . Parts Melted 15 | . 2 13 Heat Transferred 3478 | . 111 3367 Parts Sabotaged . | . . . Parts Stolen . | . . . Parts Stripped . | . . . Power Chain Reactions . | . . . Alert | -11 -10 -9 ------- Run | Yrd Mat Mat Peak Influence 502 | . 5 502 Initial 1 | . . 1 Average 259 | . 2 313 Maximum Alert Level 2 | . . 2 Low Security (%) 33 | 100 100 19 Level 1 33 | . . 40 Level 2 32 | . . 39 Level 3 . | . . . Level 4 . | . . . Level 5 . | . . . High Security . | . . . Max Security . | . . . Squads Dispatched 3 | . 1 2 Investigation 1 | . . 1 Extermination . | . . . Reinforcement 2 | . 1 1 Assault . | . . . Garrison . | . . . Intercept . | . . . Searches Triggered . | . . . Construction Impeded . | . . . Haulers Reinforced . | . . . Active Scanning Responses . | . . . Cargo Convoy Interrupts . | . . . Stealth | -11 -10 -9 --------- Run | Yrd Mat Mat Distress Signals 3 | . . 3 Communications Jammed . | . . . Distress Signals . | . . . Times Spotted 40 | . 4 36 Peak Tracking Total 5 | . 2 5 Tactical Retreats 5 | . . 5 Traps | -11 -10 -9 ------- Run | Yrd Mat Mat Traps Triggered . | . . . Indirectly . | . . . Trap Hack Attempts . | . . . Triggered . | . . . Disarmed 6 | . 6 . Reprogrammed . | . . . Reused . | . . . Traps Extracted . | . . . Installed . | . . . Triggered . | . . . Machines | -11 -10 -9 ---------- Run | Yrd Mat Mat Machines Disabled 2 | . . 2 Max in Single Turn 1 | . . 1 Machines Repaired . | . . . Machines Dismantled . | . . . Machines Sabotaged . | . . . Overloaded Fab Kills . | . . . Hacking | -11 -10 -9 --------- Run | Yrd Mat Mat Machines Accessed 8 | . 4 4 Terminals 6 | . 3 3 Fabricators . | . . . Repair Stations . | . . . Recycling Units 1 | . 1 . Scanalyzers 1 | . . 1 Garrison Access . | . . . Total Hacks 23 | . 12 11 Successful 14 | . 6 8 Failed 9 | . 6 3 Catastrophic . | . . . Database Lockouts . | . . . Manual . | . . . Terminals 14 | . 7 7 Fabricators . | . . . Repair Stations . | . . . Recycling Units 5 | . 5 . Scanalyzers 4 | . . 4 Garrison Access . | . . . Terminal Hacks 8 | . 4 4 Record 1 | . 1 . Prototype ID Bank 2 | . . 2 Alert Level 1 | . 1 . Disarm Traps 1 | . 1 . Zone Layout 3 | . 1 2 Fabricator Hacks . | . . . Repair Station Hacks . | . . . Recycling Unit Hacks 2 | . 2 . Report Inventory 1 | . 1 . Retrieve Components 1 | . 1 . Scanalyzer 4 | . . 4 Insert Component 2 | . . 2 Analyze 2 | . . 2 Garrison Access Hacks . | . . . Unauthorized Hacks . | . . . Terminals . | . . . Fabricators . | . . . Repair Stations . | . . . Recycling Units . | . . . Scanalyzers . | . . . Garrison Access . | . . . Data Cores Recovered . | . . . Used . | . . . Hacking Detections 6 | . 4 2 Full Trace Events 3 | . 1 2 Feedback Events 1 | . . 1 Corruption 1 | . . 1 Feedback Blocked . | . . . Robot Schematics Acquired . | . . . Robots Built . | . . . Authchips . | . . . Time . | . . . Total Robot Build Rating . | . . . Part Schematics Acquired 2 | . . 2 Parts Built . | . . . Authchips . | . . . Time . | . . . Total Part Build Rating . | . . . Parts Repaired . | . . . Time . | . . . Parts Recycled . | . . . Recycled Matter . | . . . Retrieved Matter . | . . . Retrieved Components 3 | . 3 . Parts Scanalyzed 2 | . . 2 Part Schematics Acquired 2 | . . 2 Parts Damaged . | . . . Bothacking | -11 -10 -9 ------------ Run | Yrd Mat Mat Used RIF Installer . | . . . Robots Hacked . | . . . Non-combat . | . . . Combat . | . . . Robot Hacks Applied . | . . . Relay Couplers Released . | . . . Fabnet Peak Effective % . | . . . Robots Rewired . | . . . Allies Hacked . | . . . Hacks Repelled . | . . . Allies | -11 -10 -9 -------- Run | Yrd Mat Mat Total Allies . | . . . Largest Group . | . . . Highest-Rated Group . | . . . Highest-Rated Ally . | . . . Total Orders . | . . . Ally Attacks . | . . . Total Damage . | . . . Kills . | . . . Allies Corrupted . | . . . Allies Melted . | . . . Intel | -11 -10 -9 ------- Run | Yrd Mat Mat Robot Analysis Total . | . . . Derelict Logs Recovered . | . . . Drone Launches . | . . . Drone Recoveries . | . . . Exploration | -11 -10 -9 ------------- Run | Yrd Mat Mat Turns Passed 1497 | 60 199 1238 Spaces Moved 609 | 49 145 415 Core 18 | 18 . . Treads . | . . . Legs 447 | 31 145 271 Wheels . | . . . Hover . | . . . Flight 144 | . . 144 Fastest Speed 50 | 50 120 114 Average Speed 162 | 94 120 185 Slowest Speed 840 | 120 120 840 Overloaded Moves . | . . . Propulsion Burnouts . | . . . Robots Hopped . | . . . Cave-ins Triggered . | . . . Exploration Rate (%) 27 | 5 29 47 Regions Visited 2 Branch Regions . Pre-discovered Areas . | . . . Known Exits Taken . | . . . Unknown Exits Taken 2 | 1 1 . Scrap Searched . | . . . Spaces Dug . | . . . Terrain Destroyed 18 | . . 18 Melee . | . . . Projectile 18 | . . 18 AOE . | . . . Terrain Rammed . | . . . Walls Destroyed . | . . . Machines Disabled . | . . . Actions | -11 -10 -9 --------- Run | Yrd Mat Mat Total 913 | 62 159 692 Wait 93 | . 4 89 Move 607 | 48 144 415 Hop . | . . . Pick Up 38 | 8 4 26 Fast Attach 6 | 2 . 4 Attach 14 | 4 1 9 Detach . | . . . Swap 14 | . . 14 Drop 26 | . . 26 Fire 114 | . 6 108 Melee . | . . . Ram 1 | . . 1 Kick . | . . . Crush . | . . . Escape Stasis . | . . . Rewire . | . . . Trap . | . . . Miscellaneous . | . . . Route ------- -11/Scrapyard -10/Materials (discovered 3 exits: *Mat / [*Min x2]) -9/Materials (discovered 2 exits: [*Mat] / [*Min]) History --------- Turn | Location | Event 9 | -11/Scrapyard | Discovered new exit (range 16) 61 | -11/Scrapyard | Entered Materials 76 | -10/Materials | Discovered new exit (range 20) 159 | -10/Materials | Discovered new exit (range 14) 214 | -10/Materials | Discovered new exit (range 16) 260 | -10/Materials | Entered another Materials area 260 | -9/Materials | Evolved 2 slots: Propulsion x1, Utility x1 310 | -9/Materials | Build established: Mutant 601 | -9/Materials | Discovered new exit (range 8) 993 | -9/Materials | Discovered new exit (range 10) 1167 | -9/Materials | Core integrity fell below 50% 1204 | -9/Materials | Lost 4 parts (3n1u) 1498 | -9/Materials | Self-destructed Last Messages --------------- 01342_ A-02 Transporter destroyed. 01343_ U-05 Engineer builds a Wall. 01345_ R-06 Scavenger collects Imp. EM Shotgun. 01347_ U-05 Engineer builds a Wall. 01348_ R-06 Scavenger collects Prototype Energy Cannon. 01348_ R-06 Scavenger collects Imp. EM Shotgun. 01351_ R-06 Scavenger collects Lgt. Treads. 01352_ R-06 Scavenger collects Imp. EM Shotgun. 01369_ Acquired 10 matter. 01375_ Destroyed Tractor Beam. 01375_ R-06 Scavenger destroyed. 01391_ System corrupted: Component data lost. 01394_ K-01 Serf collects debris. 01396_ Acquired 45 matter. 01396_ R-06 Scavenger collects Sml. Storage Unit. 01397_ K-01 Serf collects debris. 01402_ Acquired 4 matter. 01404_ K-01 Serf collects debris. 01425_ KJ34M0K: >JOC6MFT8SLRK72/W6THRD 01427_ K-01 Serf collects debris. Map ----- +----------------------------------------------------+ | # %+% #??????????????? | | # # """""%#??????????????? | | ######/####+#### # """"" #??????????????? | | ## # # # """"" #??????????????? | | ### + # # #??????????????? | | ??# """ # # ############ ##??????????????? | | ??# """ # # #????????????#???????????????? | | ??# """ # # #????????????????????????????? | | ??# # # #????????????????????????????? | | ??# ######## #????????????????????????????? | | ??# #??????# ????????????????????????????? | | ??########??????# #????????????????????????????? | | ????????????????# ###????????????????????????????? | | ????????????????# #??????????????????????????????? | | ????????######??# #??????????????????????????????? | | ???????##!!!!#### #??????????????????????????????? | | ???????#! ### #?###?+##??????????????????????? | | ???????# %# # #?# ? ??????????????????? | | ######## ### ### """ #??????????????????? | | % # # "Y" """ #??????????????????? | | #?# " " """ #??????????????????? | | #?# """Y#??????????????????? | | ####+### #### #?# #??????????????????? | | ??? # ##?# #?? o ! ???????????????????? | | # """# #??# #???? ?????????????????????? | | # R"# "#?# #######@#######????????????????? | | # """# *" ## #????????????????? | | + ! #% "### #????????????????? | | # # ##?# #????????????????? | | ######## #??###########+### +????????????????? | | ??????? #????????????????? #????????????????? | | ??????? #?????????????????? #????????????????? | | ?????? "??????????????????? #????????????????? | | ?????? ???????????????????? ????????????????? | | ????? "????????????????????? ???????????????? | | ??????? #?????????????????????? ??????????????? | | ???????##+##???????????????????????#?????????????? | | ?????????????????????????????????????????????????? | | ?????????????????????????????????????????????????? | | ?????????????????????????????????????????????????? | | ?????????????????????????????????????????????????? | | ?????????????????????????????????????????????????? | | ?????????????????????????????????????????????????? | | ?????????????????????????????????????????????????? | | | | | | | | | | | | | +----------------------------------------------------+ Best States ------------- Heat Dissipation 50 Coolant Potential 50 Energy Generation 14 Energy Capacity 265 Matter Stores 300 Matter Capacity 300 Sight Range 16 Terrain Scan Density 10 Armor Coverage 450 Propulsion Shielding 33 Evasion (%) 55 Item Schematics ----------------- Flight Unit | -9/Materials | Scanalyzed Lgt. Ion Engine | -9/Materials | Scanalyzed Robot Schematics ------------------ None Fabricated ------------ Nothing Alien Tech Used ----------------- None Achievements -------------- Oops Challenges ------------ None Game ------ Seed OvertunedThrowingBeam Manual? 0 Play Time 00:26:23 Cumulative 11.9 hours Start 2024.08.13 @ 15:15:54 End 2024.08.13 @ 17:58:45 Sessions 3 Manual Loads 0 Difficulty Rogue Special Mode None Game No. 23 Rogue 6 Adventurer 17 Explorer 0 Win Type - Total 0 Types 0/0/0/0/0/0/0/0/0 Lore% 8 Gallery% 12 Achievement% 14 Wizard Run 0 Options --------- Layout 0 ASCII 0 Keyboard 0 Movement Mouse Keybinds 0 Fullscreen 1 Font 18/SmallcapsGlow Map View 76x50 Zoom Use 0% Tactical HUD 1 Map Filters NONE Filters NONE Steam 1 RUN: b154b0e2-0f9a-4d6b-9b94-bc42920c0902